[Event "Titled Tuesday Blitz August 1 Early 2023"]
[White "Zaichenko, Daria"]
[Black "zano2023"]
[WhiteFideId "4197453"]
[WhiteElo "2252"]
[BlackElo "2135"]
[Result "1-0"]
[Round "6"]
[TimeControl "180+1"]
[Date "2023.08.01"]
[WhiteClock "0:00:12"]
[BlackClock "0:00:00"]
[Board "226"]

1. e4 {[%clk 0:02:54]}  e5 {[%clk 0:02:58]} 2. Nf3 {[%clk 0:02:52]}  d6 {[%clk 0:02:58]} 3. Bc4 {[%clk 0:02:53]}  Be7 {[%clk 0:02:58]} 4. c3 {[%clk 0:02:51]}  Nf6 {[%clk 0:02:57]} 5. d3 {[%clk 0:02:49]}  O-O {[%clk 0:02:57]} 6. Nbd2 {[%clk 0:02:48]}  c6 {[%clk 0:02:55]} 7. Bb3 {[%clk 0:02:48]}  Bg4 {[%clk 0:02:54]} 8. h3 {[%clk 0:02:48]}  Bh5 {[%clk 0:02:53]} 9. Nf1 {[%clk 0:02:48]}  Nbd7 {[%clk 0:02:51]} 10. Ng3 {[%clk 0:02:48]}  Bg6 {[%clk 0:02:51]} 11. Nh4 {[%clk 0:02:33]}  d5 {[%clk 0:02:48]} 12. Nhf5 {[%clk 0:02:26]}  dxe4 {[%clk 0:02:44]} 13. dxe4 {[%clk 0:02:25]}  Bc5 {[%clk 0:02:41]} 14. Bg5 {[%clk 0:02:18]}  Qc7 {[%clk 0:02:25]} 15. Qe2 {[%clk 0:02:15]}  Rfe8 {[%clk 0:02:22]} 16. h4 {[%clk 0:02:07]}  b5 {[%clk 0:02:20]} 17. h5 {[%clk 0:02:06]}  Bxf5 {[%clk 0:02:21]} 18. Nxf5 {[%clk 0:02:06]}  a5 {[%clk 0:02:14]} 19. a3 {[%clk 0:02:03]}  Bf8 {[%clk 0:02:01]} 20. Rd1 {[%clk 0:02:00]}  h6 {[%clk 0:01:55]} 21. Bc1 {[%clk 0:01:55]}  Nc5 {[%clk 0:01:47]} 22. Bc2 {[%clk 0:01:55]}  Ne6 {[%clk 0:01:41]} 23. Qf3 {[%clk 0:01:37]}  Nf4 {[%clk 0:01:27]} 24. g3 {[%clk 0:01:31]}  N4xh5 {[%clk 0:01:18]} 25. Rxh5 {[%clk 0:01:28]}  Nxh5 {[%clk 0:01:18]} 26. Qxh5 {[%clk 0:01:28]}  g6 {[%clk 0:01:13]} 27. Nxh6+ {[%clk 0:01:26]}  Bxh6 {[%clk 0:01:13]} 28. Qxh6 {[%clk 0:01:25]}  Rad8 {[%clk 0:01:09]} 29. Bb3 {[%clk 0:01:16]}  Rxd1+ {[%clk 0:01:07]} 30. Kxd1 {[%clk 0:01:16]}  Qd6+ {[%clk 0:01:04]} 31. Ke1 {[%clk 0:01:10]}  Rd8 {[%clk 0:01:05]} 32. Bg5 {[%clk 0:01:04]}  Rd7 {[%clk 0:01:03]} 33. Kf1 {[%clk 0:01:00]}  a4 {[%clk 0:01:02]} 34. Ba2 {[%clk 0:00:58]}  c5 {[%clk 0:00:59]} 35. Bd5 {[%clk 0:00:57]}  b4 {[%clk 0:00:59]} 36. Kg2 {[%clk 0:00:29]}  bxa3 {[%clk 0:00:56]} 37. bxa3 {[%clk 0:00:29]}  Qb6 {[%clk 0:00:44]} 38. Qh4 {[%clk 0:00:26]}  Rd6 {[%clk 0:00:36]} 39. Be7 {[%clk 0:00:23]}  Kg7 {[%clk 0:00:29]} 40. Bxd6 {[%clk 0:00:22]}  Qxd6 {[%clk 0:00:30]} 41. c4 {[%clk 0:00:21]}  Qd7 {[%clk 0:00:23]} 42. Qh3 {[%clk 0:00:20]}  Qc7 {[%clk 0:00:20]} 43. Qg4 {[%clk 0:00:19]}  Qd6 {[%clk 0:00:19]} 44. Qf3 {[%clk 0:00:18]}  f6 {[%clk 0:00:19]} 45. Qc3 {[%clk 0:00:18]}  Qb6 {[%clk 0:00:18]} 46. Qe3 {[%clk 0:00:16]}  Qd6 {[%clk 0:00:15]} 47. f4 {[%clk 0:00:15]}  exf4 {[%clk 0:00:15]} 48. gxf4 {[%clk 0:00:16]}  Qd7 {[%clk 0:00:14]} 49. Kg3 {[%clk 0:00:14]}  Qd6 {[%clk 0:00:12]} 50. e5 {[%clk 0:00:15]}  fxe5 {[%clk 0:00:11]} 51. fxe5 {[%clk 0:00:15]}  Qe7 {[%clk 0:00:11]} 52. e6 {[%clk 0:00:13]}  Kh7 {[%clk 0:00:11]} 53. Qf4 {[%clk 0:00:12]}  Kh8 {[%clk 0:00:08]} 54. Qh4+ {[%clk 0:00:12]}  Qh7 {[%clk 0:00:00]} 55. e7 {[%clk 0:00:12]} 1-0


[Site "https://www.chess.com"]

[Event "Titled Tuesday Blitz August 1 Early 2023"]
[White "alfianasybullina"]
[Black "Navyblue1"]
[WhiteElo "2210"]
[BlackElo "1935"]
[Result "1-0"]
[Round "6"]
[TimeControl "180+1"]
[Date "2023.08.01"]
[WhiteClock "0:00:24"]
[BlackClock "0:00:02"]
[Board "228"]

1. Nf3 {[%clk 0:03:00]}  d5 {[%clk 0:02:57]} 2. d4 {[%clk 0:03:00]}  c5 {[%clk 0:02:55]} 3. c3 {[%clk 0:03:00]}  Nc6 {[%clk 0:02:51]} 4. g3 {[%clk 0:02:59]}  Nf6 {[%clk 0:02:45]} 5. Bg2 {[%clk 0:02:58]}  Bg4 {[%clk 0:02:40]} 6. dxc5 {[%clk 0:02:57]}  e5 {[%clk 0:02:26]} 7. b4 {[%clk 0:02:56]}  Ne4 {[%clk 0:02:11]} 8. O-O {[%clk 0:02:50]}  a5 {[%clk 0:01:58]} 9. b5 {[%clk 0:02:49]}  Na7 {[%clk 0:01:21]} 10. Nxe5 {[%clk 0:02:48]}  Be6 {[%clk 0:01:09]} 11. c4 {[%clk 0:02:21]}  Bxc5 {[%clk 0:00:52]} 12. Ba3 {[%clk 0:02:01]}  Bxa3 {[%clk 0:00:25]} 13. Nxa3 {[%clk 0:01:59]}  O-O {[%clk 0:00:23]} 14. Bxe4 {[%clk 0:01:39]}  dxe4 {[%clk 0:00:19]} 15. Qxd8 {[%clk 0:01:39]}  Rfxd8 {[%clk 0:00:18]} 16. Rfd1 {[%clk 0:01:39]}  f6 {[%clk 0:00:16]} 17. b6 {[%clk 0:01:31]}  Nc6 {[%clk 0:00:13]} 18. Nxc6 {[%clk 0:01:29]}  bxc6 {[%clk 0:00:14]} 19. Rxd8+ {[%clk 0:01:21]}  Rxd8 {[%clk 0:00:14]} 20. Rb1 {[%clk 0:01:19]}  Rb8 {[%clk 0:00:15]} 21. Rb2 {[%clk 0:01:11]}  Kf7 {[%clk 0:00:14]} 22. c5 {[%clk 0:01:10]}  Ke7 {[%clk 0:00:13]} 23. Nc2 {[%clk 0:01:09]}  Kd7 {[%clk 0:00:13]} 24. Nd4 {[%clk 0:01:06]}  g6 {[%clk 0:00:13]} 25. Rd2 {[%clk 0:01:05]}  Bd5 {[%clk 0:00:13]} 26. a3 {[%clk 0:01:02]}  Kc8 {[%clk 0:00:13]} 27. f3 {[%clk 0:00:56]}  exf3 {[%clk 0:00:11]} 28. exf3 {[%clk 0:00:51]}  Kd7 {[%clk 0:00:11]} 29. Kf2 {[%clk 0:00:50]}  Re8 {[%clk 0:00:09]} 30. Nc2 {[%clk 0:00:49]}  Kc8 {[%clk 0:00:09]} 31. Ne3 {[%clk 0:00:48]}  Re5 {[%clk 0:00:06]} 32. h4 {[%clk 0:00:44]}  Kb7 {[%clk 0:00:05]} 33. f4 {[%clk 0:00:37]}  Re4 {[%clk 0:00:04]} 34. Nxd5 {[%clk 0:00:37]}  cxd5 {[%clk 0:00:05]} 35. Rxd5 {[%clk 0:00:37]}  Kc6 {[%clk 0:00:05]} 36. Rd6+ {[%clk 0:00:33]}  Kxc5 {[%clk 0:00:05]} 37. b7 {[%clk 0:00:29]}  Re8 {[%clk 0:00:05]} 38. Rd7 {[%clk 0:00:29]}  Rb8 {[%clk 0:00:04]} 39. Rxh7 {[%clk 0:00:29]}  Kc6 {[%clk 0:00:03]} 40. Rf7 {[%clk 0:00:29]}  Rxb7 {[%clk 0:00:04]} 41. Rxf6+ {[%clk 0:00:29]}  Kd5 {[%clk 0:00:04]} 42. Rxg6 {[%clk 0:00:27]}  Rb2+ {[%clk 0:00:04]} 43. Kf3 {[%clk 0:00:25]}  Rb3+ {[%clk 0:00:04]} 44. Kg4 {[%clk 0:00:26]}  Rxa3 {[%clk 0:00:05]} 45. Rg5+ {[%clk 0:00:24]}  Ke4 {[%clk 0:00:05]} 46. Re5+ {[%clk 0:00:24]}  Kd4 {[%clk 0:00:05]} 47. h5 {[%clk 0:00:24]}  a4 {[%clk 0:00:05]} 48. h6 {[%clk 0:00:25]}  Ra1 {[%clk 0:00:05]} 49. h7 {[%clk 0:00:24]}  Rh1 {[%clk 0:00:06]} 50. Rh5 {[%clk 0:00:24]}  Rxh5 {[%clk 0:00:02]} 51. Kxh5 {[%clk 0:00:24]} 1-0


[Site "https://www.chess.com"]

[Event "Titled Tuesday Blitz August 1 Early 2023"]
[White "Tristan, Leonardo"]
[Black "Makarian, Rudik"]
[WhiteFideId "113816"]
[BlackFideId "44105681"]
[WhiteElo "2801"]
[BlackElo "3020"]
[Result "0-1"]
[Round "7"]
[TimeControl "180+1"]
[Date "2023.08.01"]
[WhiteClock "0:00:04"]
[BlackClock "0:00:52"]
[Board "4"]

1. d4 {[%clk 0:03:00]}  Nf6 {[%clk 0:03:00]} 2. Nf3 {[%clk 0:03:01]}  c5 {[%clk 0:03:00]} 3. c3 {[%clk 0:03:01]}  d5 {[%clk 0:02:59]} 4. Bf4 {[%clk 0:03:01]}  Nc6 {[%clk 0:02:59]} 5. e3 {[%clk 0:03:01]}  Qb6 {[%clk 0:03:00]} 6. Qc2 {[%clk 0:03:01]}  g6 {[%clk 0:03:00]} 7. Nbd2 {[%clk 0:03:01]}  Bg7 {[%clk 0:03:01]} 8. Be2 {[%clk 0:03:01]}  O-O {[%clk 0:03:01]} 9. O-O {[%clk 0:03:01]}  Bf5 {[%clk 0:02:58]} 10. dxc5 {[%clk 0:03:01]}  Qxc5 {[%clk 0:02:59]} 11. Qb3 {[%clk 0:03:01]}  Ne4 {[%clk 0:03:00]} 12. Nxe4 {[%clk 0:02:43]}  Bxe4 {[%clk 0:02:57]} 13. Rfd1 {[%clk 0:01:56]}  Na5 {[%clk 0:02:38]} 14. Qb5 {[%clk 0:01:42]}  Qxb5 {[%clk 0:02:36]} 15. Bxb5 {[%clk 0:01:43]}  a6 {[%clk 0:02:33]} 16. Be2 {[%clk 0:01:41]}  Nc4 {[%clk 0:02:19]} 17. Bxc4 {[%clk 0:01:34]}  dxc4 {[%clk 0:02:19]} 18. Rd7 {[%clk 0:01:30]}  Rfe8 {[%clk 0:02:18]} 19. Ne5 {[%clk 0:01:10]}  Rac8 {[%clk 0:02:02]} 20. f3 {[%clk 0:01:07]}  Bf5 {[%clk 0:01:37]} 21. Rxb7 {[%clk 0:01:06]}  f6 {[%clk 0:01:37]} 22. Ng4 {[%clk 0:00:37]}  h5 {[%clk 0:01:19]} 23. Nf2 {[%clk 0:00:36]}  e5 {[%clk 0:01:18]} 24. Bg3 {[%clk 0:00:34]}  Rb8 {[%clk 0:01:17]} 25. Rxb8 {[%clk 0:00:31]}  Rxb8 {[%clk 0:01:17]} 26. e4 {[%clk 0:00:32]}  Be6 {[%clk 0:01:16]} 27. Nd1 {[%clk 0:00:32]}  Bh6 {[%clk 0:01:12]} 28. Bf2 {[%clk 0:00:33]}  f5 {[%clk 0:01:11]} 29. Kf1 {[%clk 0:00:29]}  Kf7 {[%clk 0:01:10]} 30. h3 {[%clk 0:00:29]}  Rd8 {[%clk 0:01:07]} 31. Ke1 {[%clk 0:00:18]}  Rd2 {[%clk 0:00:57]} 32. exf5 {[%clk 0:00:16]}  gxf5 {[%clk 0:00:55]} 33. b3 {[%clk 0:00:12]}  Rc2 {[%clk 0:00:53]} 34. bxc4 {[%clk 0:00:09]}  Bxc4 {[%clk 0:00:53]} 35. Be3 {[%clk 0:00:04]}  Re2+ {[%clk 0:00:52]} 0-1


[Site "https://www.chess.com"]

[Event "Titled Tuesday Blitz August 1 Early 2023"]
[White "Moroni, Luca Jr"]
[Black "Xu, Xiangyu"]
[WhiteFideId "865834"]
[BlackFideId "8608288"]
[WhiteElo "2858"]
[BlackElo "3000"]
[Result "0-1"]
[Round "7"]
[TimeControl "180+1"]
[Date "2023.08.01"]
[WhiteClock "0:00:03"]
[BlackClock "0:00:38"]
[Board "8"]

1. d4 {[%clk 0:03:00]}  d5 {[%clk 0:02:59]} 2. Bf4 {[%clk 0:03:00]}  c5 {[%clk 0:02:58]} 3. e3 {[%clk 0:03:00]}  Nc6 {[%clk 0:02:59]} 4. Nf3 {[%clk 0:03:01]}  cxd4 {[%clk 0:02:58]} 5. exd4 {[%clk 0:03:01]}  Bg4 {[%clk 0:02:59]} 6. c3 {[%clk 0:02:56]}  e6 {[%clk 0:02:59]} 7. Nbd2 {[%clk 0:02:55]}  Bd6 {[%clk 0:02:59]} 8. Bxd6 {[%clk 0:02:55]}  Qxd6 {[%clk 0:03:00]} 9. Be2 {[%clk 0:02:55]}  Nge7 {[%clk 0:03:00]} 10. O-O {[%clk 0:02:55]}  O-O {[%clk 0:03:00]} 11. Re1 {[%clk 0:02:52]}  a6 {[%clk 0:02:51]} 12. a3 {[%clk 0:02:49]}  Ng6 {[%clk 0:02:48]} 13. Ne5 {[%clk 0:02:28]}  Ncxe5 {[%clk 0:02:40]} 14. dxe5 {[%clk 0:02:19]}  Bxe2 {[%clk 0:02:40]} 15. Qxe2 {[%clk 0:02:20]}  Qb6 {[%clk 0:02:40]} 16. Nf3 {[%clk 0:02:20]}  Rac8 {[%clk 0:02:40]} 17. Nd4 {[%clk 0:02:20]}  Rc4 {[%clk 0:02:39]} 18. Rad1 {[%clk 0:02:19]}  Ne7 {[%clk 0:02:38]} 19. Kh1 {[%clk 0:02:16]}  Nc6 {[%clk 0:02:37]} 20. Nxc6 {[%clk 0:02:06]}  bxc6 {[%clk 0:02:38]} 21. g3 {[%clk 0:02:03]}  Rb8 {[%clk 0:02:33]} 22. Rd2 {[%clk 0:02:02]}  a5 {[%clk 0:02:33]} 23. Kg2 {[%clk 0:02:01]}  a4 {[%clk 0:02:33]} 24. Qd3 {[%clk 0:01:53]}  g6 {[%clk 0:02:31]} 25. h4 {[%clk 0:01:53]}  h5 {[%clk 0:02:31]} 26. Qf3 {[%clk 0:01:52]}  Qd8 {[%clk 0:02:27]} 27. Qd1 {[%clk 0:01:52]}  c5 {[%clk 0:02:21]} 28. Qf3 {[%clk 0:01:45]}  Qe7 {[%clk 0:02:20]} 29. Ree2 {[%clk 0:01:35]}  Rb3 {[%clk 0:02:21]} 30. Re3 {[%clk 0:01:32]}  Qb7 {[%clk 0:02:19]} 31. Qf6 {[%clk 0:01:21]}  Qc7 {[%clk 0:01:42]} 32. Kh3 {[%clk 0:00:30]}  Rb7 {[%clk 0:01:35]} 33. Kg2 {[%clk 0:00:28]}  Qb8 {[%clk 0:01:31]} 34. Qg5 {[%clk 0:00:22]}  d4 {[%clk 0:00:37]} 35. cxd4 {[%clk 0:00:18]}  Rxd4 {[%clk 0:00:37]} 36. Rxd4 {[%clk 0:00:11]}  cxd4 {[%clk 0:00:38]} 37. Rd3 {[%clk 0:00:12]}  Rxb2 {[%clk 0:00:39]} 38. Rxd4 {[%clk 0:00:09]}  Qb7+ {[%clk 0:00:39]} 39. Kf1 {[%clk 0:00:03]}  Qh1# {[%clk 0:00:38]} 0-1


[Site "https://www.chess.com"]

[Event "Titled Tuesday Blitz August 1 Early 2023"]
[White "Hovhannisyan, Robert"]
[Black "Harvey, Marcus R"]
[WhiteFideId "13302507"]
[BlackFideId "400092"]
[WhiteElo "2969"]
[BlackElo "2808"]
[Result "1-0"]
[Round "7"]
[TimeControl "180+1"]
[Date "2023.08.01"]
[WhiteClock "0:02:12"]
[BlackClock "0:02:20"]
[Board "11"]

1. e4 {[%clk 0:03:00]}  c5 {[%clk 0:02:55]} 2. Nf3 {[%clk 0:03:00]}  d6 {[%clk 0:02:55]} 3. d4 {[%clk 0:03:00]}  cxd4 {[%clk 0:02:55]} 4. Qxd4 {[%clk 0:03:01]}  Nf6 {[%clk 0:02:56]} 5. Nc3 {[%clk 0:03:00]}  Nc6 {[%clk 0:02:53]} 6. Bb5 {[%clk 0:03:00]}  Bd7 {[%clk 0:02:52]} 7. Bxc6 {[%clk 0:03:00]}  Bxc6 {[%clk 0:02:52]} 8. Bg5 {[%clk 0:02:59]}  e6 {[%clk 0:02:53]} 9. O-O-O {[%clk 0:02:59]}  Be7 {[%clk 0:02:53]} 10. Bxf6 {[%clk 0:02:56]}  Bxf6 {[%clk 0:02:51]} 11. Qxd6 {[%clk 0:02:55]}  Qxd6 {[%clk 0:02:51]} 12. Rxd6 {[%clk 0:02:56]}  Ke7 {[%clk 0:02:48]} 13. Rxc6 {[%clk 0:02:42]}  bxc6 {[%clk 0:02:44]} 14. e5 {[%clk 0:02:43]}  Rhd8 {[%clk 0:02:41]} 15. exf6+ {[%clk 0:02:42]}  gxf6 {[%clk 0:02:41]} 16. Re1 {[%clk 0:02:40]}  f5 {[%clk 0:02:41]} 17. b3 {[%clk 0:02:29]}  Kf6 {[%clk 0:02:40]} 18. Re5 {[%clk 0:02:25]}  Rd6 {[%clk 0:02:39]} 19. Ra5 {[%clk 0:02:23]}  Re8 {[%clk 0:02:27]} 20. Rxa7 {[%clk 0:02:16]}  e5 {[%clk 0:02:28]} 21. Nd2 {[%clk 0:02:15]}  e4 {[%clk 0:02:27]} 22. Nc4 {[%clk 0:02:14]}  Rde6 {[%clk 0:02:20]} 23. g3 {[%clk 0:02:12]} 1-0


[Site "https://www.chess.com"]

[Event "Titled Tuesday Blitz August 1 Early 2023"]
[White "Priasmoro, Novendra"]
[Black "Shimanov, Aleksandr"]
[WhiteFideId "7105029"]
[BlackFideId "4198603"]
[WhiteElo "2793"]
[BlackElo "2950"]
[Result "0-1"]
[Round "7"]
[TimeControl "180+1"]
[Date "2023.08.01"]
[WhiteClock "0:00:00"]
[BlackClock "0:00:20"]
[Board "12"]

1. e4 {[%clk 0:03:00]}  d5 {[%clk 0:02:55]} 2. exd5 {[%clk 0:03:00]}  Qxd5 {[%clk 0:02:56]} 3. Nc3 {[%clk 0:03:01]}  Qe5+ {[%clk 0:02:56]} 4. Be2 {[%clk 0:02:55]}  Bg4 {[%clk 0:02:56]} 5. d4 {[%clk 0:02:54]}  Bxe2 {[%clk 0:02:56]} 6. Ngxe2 {[%clk 0:02:54]}  Qa5 {[%clk 0:02:56]} 7. O-O {[%clk 0:02:54]}  Nf6 {[%clk 0:02:56]} 8. Nf4 {[%clk 0:02:47]}  c6 {[%clk 0:02:56]} 9. Re1 {[%clk 0:02:46]}  e6 {[%clk 0:02:32]} 10. d5 {[%clk 0:02:29]}  cxd5 {[%clk 0:02:31]} 11. Ncxd5 {[%clk 0:02:23]}  Nxd5 {[%clk 0:02:32]} 12. Nxd5 {[%clk 0:02:24]}  Nc6 {[%clk 0:02:30]} 13. Nc3 {[%clk 0:01:16]}  Bb4 {[%clk 0:02:22]} 14. Qg4 {[%clk 0:01:06]}  Bxc3 {[%clk 0:02:15]} 15. bxc3 {[%clk 0:01:06]}  O-O {[%clk 0:02:09]} 16. Bb2 {[%clk 0:00:44]}  Ne5 {[%clk 0:01:22]} 17. Qe4 {[%clk 0:00:38]}  Ng6 {[%clk 0:01:22]} 18. c4 {[%clk 0:00:34]}  Rfd8 {[%clk 0:01:17]} 19. Red1 {[%clk 0:00:32]}  Qc7 {[%clk 0:01:06]} 20. Rd3 {[%clk 0:00:28]}  Rd7 {[%clk 0:00:43]} 21. Rad1 {[%clk 0:00:28]}  Rad8 {[%clk 0:00:44]} 22. g3 {[%clk 0:00:22]}  Nf8 {[%clk 0:00:31]} 23. h4 {[%clk 0:00:16]}  e5 {[%clk 0:00:29]} 24. Bxe5 {[%clk 0:00:15]}  Qc6 {[%clk 0:00:24]} 25. Qg4 {[%clk 0:00:07]}  Qg6 {[%clk 0:00:21]} 26. Rxd7 {[%clk 0:00:00]}  Rxd7 {[%clk 0:00:20]} 0-1


[Site "https://www.chess.com"]

[Event "Titled Tuesday Blitz August 1 Early 2023"]
[White "Movahed, Sina"]
[Black "Lamaze, Simon"]
[WhiteFideId "42520835"]
[BlackFideId "36069264"]
[WhiteElo "2949"]
[BlackElo "2792"]
[Result "1-0"]
[Round "7"]
[TimeControl "180+1"]
[Date "2023.08.01"]
[WhiteClock "0:01:31"]
[BlackClock "0:00:58"]
[Board "13"]

1. e4 {[%clk 0:03:00]}  c6 {[%clk 0:02:57]} 2. d4 {[%clk 0:03:00]}  d5 {[%clk 0:02:57]} 3. e5 {[%clk 0:03:01]}  Bf5 {[%clk 0:02:57]} 4. h4 {[%clk 0:03:02]}  h5 {[%clk 0:02:57]} 5. Bg5 {[%clk 0:03:02]}  Qb6 {[%clk 0:02:54]} 6. Bd3 {[%clk 0:03:02]}  Qxd4 {[%clk 0:02:35]} 7. Nf3 {[%clk 0:03:01]}  Qg4 {[%clk 0:02:35]} 8. Bxf5 {[%clk 0:02:58]}  Qxf5 {[%clk 0:02:36]} 9. c4 {[%clk 0:02:58]}  e6 {[%clk 0:02:33]} 10. O-O {[%clk 0:02:57]}  f6 {[%clk 0:02:27]} 11. exf6 {[%clk 0:02:51]}  gxf6 {[%clk 0:02:28]} 12. Nd4 {[%clk 0:02:48]}  Qg6 {[%clk 0:02:09]} 13. Re1 {[%clk 0:02:36]}  e5 {[%clk 0:02:05]} 14. cxd5 {[%clk 0:02:30]}  cxd5 {[%clk 0:01:48]} 15. Ne6 {[%clk 0:02:30]}  Qf7 {[%clk 0:01:48]} 16. Qxd5 {[%clk 0:01:57]}  Nc6 {[%clk 0:01:48]} 17. Nc3 {[%clk 0:01:42]}  Rd8 {[%clk 0:01:38]} 18. Nxd8 {[%clk 0:01:40]}  Nxd8 {[%clk 0:01:27]} 19. Rxe5+ {[%clk 0:01:38]}  Ne7 {[%clk 0:01:20]} 20. Qb5+ {[%clk 0:01:35]}  Nc6 {[%clk 0:01:19]} 21. Ne4 {[%clk 0:01:34]}  Kd7 {[%clk 0:00:58]} 22. Qxb7+ {[%clk 0:01:31]} 1-0


[Site "https://www.chess.com"]

[Event "Titled Tuesday Blitz August 1 Early 2023"]
[White "Zemlyanskii, Ivan"]
[Black "Djordjevic, Vuk"]
[WhiteFideId "24249971"]
[BlackFideId "902098"]
[WhiteElo "2938"]
[BlackElo "2759"]
[Result "1-0"]
[Round "7"]
[TimeControl "180+1"]
[Date "2023.08.01"]
[WhiteClock "0:00:29"]
[BlackClock "0:00:00"]
[Board "14"]

1. d4 {[%clk 0:03:00]}  e6 {[%clk 0:02:59]} 2. c4 {[%clk 0:02:52]}  Nf6 {[%clk 0:02:59]} 3. Bf4 {[%clk 0:02:51]}  d6 {[%clk 0:02:53]} 4. Nc3 {[%clk 0:02:49]}  h6 {[%clk 0:02:53]} 5. e4 {[%clk 0:02:45]}  Nc6 {[%clk 0:02:43]} 6. Be3 {[%clk 0:02:36]}  e5 {[%clk 0:02:36]} 7. d5 {[%clk 0:02:34]}  Ne7 {[%clk 0:02:35]} 8. Be2 {[%clk 0:02:28]}  g5 {[%clk 0:02:33]} 9. c5 {[%clk 0:02:22]}  Ng6 {[%clk 0:02:19]} 10. cxd6 {[%clk 0:02:21]}  Bxd6 {[%clk 0:02:17]} 11. g3 {[%clk 0:02:14]}  O-O {[%clk 0:02:05]} 12. Nf3 {[%clk 0:02:12]}  Ng4 {[%clk 0:01:58]} 13. Bd2 {[%clk 0:01:54]}  Bc5 {[%clk 0:01:57]} 14. O-O {[%clk 0:01:50]}  f5 {[%clk 0:01:29]} 15. Ne1 {[%clk 0:01:43]}  Nxf2 {[%clk 0:00:38]} 16. Rxf2 {[%clk 0:01:44]}  f4 {[%clk 0:00:28]} 17. Nd3 {[%clk 0:01:36]}  Bxf2+ {[%clk 0:00:25]} 18. Nxf2 {[%clk 0:01:36]}  Qf6 {[%clk 0:00:15]} 19. Qe1 {[%clk 0:01:27]}  Bd7 {[%clk 0:00:10]} 20. Bh5 {[%clk 0:01:10]}  f3 {[%clk 0:00:02]} 21. Qe3 {[%clk 0:01:05]}  c6 {[%clk 0:00:03]} 22. Rf1 {[%clk 0:01:05]}  Ne7 {[%clk 0:00:03]} 23. Ng4 {[%clk 0:01:04]}  Qd6 {[%clk 0:00:02]} 24. Rxf3 {[%clk 0:00:58]}  Rxf3 {[%clk 0:00:03]} 25. Qxf3 {[%clk 0:00:59]}  Rf8 {[%clk 0:00:04]} 26. Qe2 {[%clk 0:00:52]}  cxd5 {[%clk 0:00:04]} 27. exd5 {[%clk 0:00:52]}  Nxd5 {[%clk 0:00:03]} 28. Qxe5 {[%clk 0:00:44]}  Qb6+ {[%clk 0:00:01]} 29. Kg2 {[%clk 0:00:32]}  Nxc3 {[%clk 0:00:01]} 30. Bxc3 {[%clk 0:00:33]}  Bc6+ {[%clk 0:00:00]} 31. Kh3 {[%clk 0:00:29]} 1-0


[Site "https://www.chess.com"]

[Event "Titled Tuesday Blitz August 1 Early 2023"]
[White "Demidov, Mikhail"]
[Black "Matinian, Nikita"]
[WhiteFideId "4197143"]
[BlackFideId "24129100"]
[WhiteElo "2926"]
[BlackElo "2758"]
[Result "1-0"]
[Round "7"]
[TimeControl "180+1"]
[Date "2023.08.01"]
[WhiteClock "0:00:10"]
[BlackClock "0:00:00"]
[Board "15"]

1. Nf3 {[%clk 0:03:00]}  Nf6 {[%clk 0:03:00]} 2. g3 {[%clk 0:02:55]}  g6 {[%clk 0:03:00]} 3. b3 {[%clk 0:02:55]}  Bg7 {[%clk 0:03:00]} 4. Bb2 {[%clk 0:02:56]}  d6 {[%clk 0:03:01]} 5. d4 {[%clk 0:02:54]}  O-O {[%clk 0:03:00]} 6. Bg2 {[%clk 0:02:50]}  a5 {[%clk 0:03:00]} 7. O-O {[%clk 0:02:49]}  a4 {[%clk 0:02:59]} 8. c4 {[%clk 0:02:49]}  Ne4 {[%clk 0:02:51]} 9. Ne1 {[%clk 0:02:35]}  f5 {[%clk 0:02:45]} 10. Nd3 {[%clk 0:02:24]}  axb3 {[%clk 0:02:12]} 11. axb3 {[%clk 0:02:23]}  Rxa1 {[%clk 0:02:12]} 12. Bxa1 {[%clk 0:02:24]}  Nc6 {[%clk 0:02:13]} 13. e3 {[%clk 0:02:19]}  e5 {[%clk 0:02:08]} 14. d5 {[%clk 0:01:52]}  Ne7 {[%clk 0:02:02]} 15. f3 {[%clk 0:01:48]}  Nf6 {[%clk 0:01:58]} 16. f4 {[%clk 0:01:48]}  Ng4 {[%clk 0:01:52]} 17. Qd2 {[%clk 0:01:36]}  e4 {[%clk 0:01:11]} 18. Bxg7 {[%clk 0:01:35]}  Kxg7 {[%clk 0:01:12]} 19. Nb4 {[%clk 0:01:29]}  h5 {[%clk 0:01:12]} 20. h3 {[%clk 0:01:27]}  Nh6 {[%clk 0:01:11]} 21. Nc3 {[%clk 0:01:23]}  Neg8 {[%clk 0:01:08]} 22. Ra1 {[%clk 0:01:21]}  h4 {[%clk 0:01:08]} 23. gxh4 {[%clk 0:01:18]}  Qxh4 {[%clk 0:01:07]} 24. Nb5 {[%clk 0:01:13]}  g5 {[%clk 0:00:40]} 25. Qf2 {[%clk 0:01:11]}  Qxf2+ {[%clk 0:00:24]} 26. Kxf2 {[%clk 0:01:12]}  gxf4 {[%clk 0:00:25]} 27. exf4 {[%clk 0:01:11]}  Nf6 {[%clk 0:00:16]} 28. Nxc7 {[%clk 0:01:04]}  Nh5 {[%clk 0:00:15]} 29. Ke3 {[%clk 0:01:03]}  Kf6 {[%clk 0:00:16]} 30. Bf1 {[%clk 0:00:56]}  Rg8 {[%clk 0:00:15]} 31. Ra8 {[%clk 0:00:44]}  Rg3+ {[%clk 0:00:12]} 32. Kf2 {[%clk 0:00:35]}  e3+ {[%clk 0:00:12]} 33. Ke1 {[%clk 0:00:33]}  Nxf4 {[%clk 0:00:12]} 34. Rxc8 {[%clk 0:00:23]}  Rg1 {[%clk 0:00:06]} 35. Rf8+ {[%clk 0:00:15]}  Ke7 {[%clk 0:00:02]} 36. Re8+ {[%clk 0:00:15]}  Kd7 {[%clk 0:00:02]} 37. Rxe3 {[%clk 0:00:15]}  Ng2+ {[%clk 0:00:03]} 38. Kf2 {[%clk 0:00:14]}  Nxe3 {[%clk 0:00:03]} 39. Kxg1 {[%clk 0:00:13]}  Kxc7 {[%clk 0:00:03]} 40. Bd3 {[%clk 0:00:13]}  Kb6 {[%clk 0:00:02]} 41. Kf2 {[%clk 0:00:13]}  f4 {[%clk 0:00:01]} 42. Nc2 {[%clk 0:00:12]}  Kc5 {[%clk 0:00:02]} 43. Nxe3 {[%clk 0:00:12]}  fxe3+ {[%clk 0:00:02]} 44. Kxe3 {[%clk 0:00:13]}  Kb4 {[%clk 0:00:03]} 45. h4 {[%clk 0:00:12]}  Kxb3 {[%clk 0:00:03]} 46. Kd4 {[%clk 0:00:11]}  b6 {[%clk 0:00:04]} 47. h5 {[%clk 0:00:11]}  Kb4 {[%clk 0:00:04]} 48. Bg6 {[%clk 0:00:11]}  Kb3 {[%clk 0:00:05]} 49. Be4 {[%clk 0:00:09]}  Kb4 {[%clk 0:00:05]} 50. Bc2 {[%clk 0:00:09]}  Ka3 {[%clk 0:00:04]} 51. Ke3 {[%clk 0:00:09]}  Kb2 {[%clk 0:00:04]} 52. Ba4 {[%clk 0:00:08]}  Kc3 {[%clk 0:00:04]} 53. Bb5 {[%clk 0:00:09]}  Ng8 {[%clk 0:00:03]} 54. Kf4 {[%clk 0:00:09]}  Kd4 {[%clk 0:00:04]} 55. Kg5 {[%clk 0:00:09]}  Ke5 {[%clk 0:00:04]} 56. h6 {[%clk 0:00:10]}  Nf6 {[%clk 0:00:00]} 57. Kg6 {[%clk 0:00:10]} 1-0


[Site "https://www.chess.com"]